bitfinex-derivatives/quotes_BTCF0:USTF0_20230702
["timestamp","ask_amount","ask_price","bid_price","bid_amount"]
[1688265379026,0.59129019,30617.0,30616.0,0.3880054]
[1688265379526,0.59129019,30617.0,30616.0,0.36980574]
[1688265379923,0.61013964,30617.0,30616.0,0.36980574]
[1688265383326,0.62836933,30617.0,30616.0,0.36980574]
[1688265385525,0.61013964,30617.0,30616.0,0.36980574]
[1688265386627,0.62836933,30617.0,30616.0,0.36980574]
[1688265386835,0.61013964,30617.0,30616.0,0.36980574]
[1688265387137,0.62836933,30617.0,30616.0,0.36980574]
[1688265389525,0.61013964,30617.0,30616.0,0.36980574]
[1688265390141,0.62836933,30617.0,30616.0,0.36980574]
[1688265392938,0.62836933,30617.0,30616.0,0.36962868]
[1688265393334,0.61013964,30617.0,30616.0,0.36962868]
[1688265393539,0.62836933,30617.0,30616.0,0.36962868]
[1688265393738,0.61013964,30617.0,30616.0,0.36962868]
[1688265394145,0.62836933,30617.0,30616.0,0.36962868]
[1688265394841,0.61013964,30617.0,30616.0,0.36962868]
[1688265395342,0.62836933,30617.0,30616.0,0.36962868]
[1688265398232,0.61013964,30617.0,30616.0,0.36962868]
[1688265398839,0.62836933,30617.0,30616.0,0.36962868]
[1688265401651,0.61013964,30617.0,30616.0,0.36962868]
[1688265402245,0.62836933,30617.0,30616.0,0.36962868]
[1688265402846,0.61013964,30617.0,30616.0,0.36962868]
[1688265403247,0.62836933,30617.0,30616.0,0.36962868]
[1688265403542,0.61013964,30617.0,30616.0,0.36962868]
[1688265403942,0.62836933,30617.0,30616.0,0.36962868]
[1688265407052,0.62836933,30617.0,30616.0,0.36949532]
[1688265410358,0.62836933,30617.0,30616.0,0.34989732]
[1688265414248,0.97856933,30617.0,30616.0,0.34989732]
[1688265414454,0.97856933,30617.0,30614.0,0.00048992]
[1688265414455,1.33906933,30617.0,30614.0,0.00048992]
[1688265414659,1.33906933,30617.0,30609.0,0.019603]
[1688265414660,0.7107,30615.0,30609.0,0.019603]
[1688265414857,0.3608,30611.0,30610.0,0.35624977]
[1688265415060,0.83625756,30611.0,30610.0,0.35624977]
[1688265415453,0.85510701,30611.0,30610.0,0.35624977]
[1688265418649,0.85510701,30611.0,30610.0,0.37585177]
[1688265419150,0.49430701,30611.0,30610.0,0.37585177]
[1688265420357,0.49430701,30611.0,30610.0,0.35624977]
[1688265422154,0.49430701,30611.0,30610.0,0.37585177]
[1688265423055,0.49430701,30611.0,30610.0,0.35624977]
[1688265423660,0.14100701,30611.0,30610.0,0.35384977]
[1688265424362,0.49360701,30611.0,30610.0,0.35534977]
[1688265425463,0.85440701,30611.0,30610.0,0.35534977]
[1688265427768,0.85440701,30611.0,30610.0,0.37495177]
[1688265429667,0.85440701,30611.0,30610.0,0.37484604]
[1688265429858,0.85440701,30611.0,30610.0,0.37970931]
[1688265431261,0.85440701,30611.0,30610.0,0.70470931]
[1688265433461,0.49360701,30611.0,30610.0,0.70470931]
[1688265433657,0.14100701,30611.0,30610.0,0.70560931]
[1688265438878,0.14100701,30611.0,30610.0,0.70749569]
[1688265439075,0.12277732,30611.0,30610.0,0.70749569]
[1688265439479,0.14100701,30611.0,30610.0,0.70749569]
[1688265442782,0.12277732,30611.0,30610.0,0.70749569]
[1688265443182,0.14100701,30611.0,30610.0,0.70749569]
[1688265446379,0.12277732,30611.0,30610.0,0.70749569]
[1688265446582,0.14100701,30611.0,30610.0,0.70749569]
[1688265446780,0.12277732,30611.0,30610.0,0.70749569]
[1688265447284,0.14100701,30611.0,30610.0,0.70749569]
[1688265451074,0.12277732,30611.0,30610.0,0.70749569]
[1688265451691,0.14100701,30611.0,30610.0,0.70749569]
[1688265453887,0.12277732,30611.0,30610.0,0.70749569]
[1688265456484,0.14100701,30611.0,30610.0,0.70749569]
[1688265457584,0.12277732,30611.0,30610.0,0.70749569]
[1688265462197,0.14100701,30611.0,30610.0,0.70749569]
[1688265463498,0.1408706,30611.0,30610.0,0.70749569]
[1688265463695,0.12264091,30611.0,30610.0,0.70749569]
[1688265464802,0.1408706,30611.0,30610.0,0.70749569]
[1688265465900,0.12264091,30611.0,30610.0,0.70749569]
[1688265466302,0.1408706,30611.0,30610.0,0.70749569]
[1688265473610,0.4911706,30611.0,30610.0,0.70509569]
[1688265474213,0.47294091,30611.0,30610.0,0.70509569]
[1688265475004,0.4911706,30611.0,30610.0,0.70509569]
[1688265475910,0.47294091,30611.0,30610.0,0.70509569]
[1688265476112,0.4911706,30611.0,30610.0,0.70492814]
[1688265478714,0.4911706,30611.0,30610.0,0.7098808]
[1688265480109,0.47294091,30611.0,30610.0,0.7098808]
[1688265480707,0.4911706,30611.0,30610.0,0.7098808]
[1688265483716,0.4911706,30611.0,30610.0,0.3589808]
[1688265485020,0.8519706,30611.0,30610.0,0.0339808]
[1688265486507,0.8519706,30611.0,30607.0,0.04673325]
[1688265486714,0.711,30608.0,30607.0,0.00049003]
[1688265487013,1.30546738,30608.0,30607.0,0.00049003]
[1688265487212,1.34254652,30608.0,30607.0,0.00049003]
[1688265487607,1.44392415,30608.0,30607.0,0.00049003]
[1688265489018,1.44392415,30608.0,30607.0,0.02009403]
[1688265494227,1.44392415,30608.0,30607.0,0.031784]
[1688265494823,1.44392415,30608.0,30607.0,0.01218]
[1688265495219,1.44392415,30608.0,30607.0,0.031784]
[1688265495917,0.67624101,30608.0,30607.0,0.382684]
[1688265496121,0.59371283,30608.0,30607.0,0.382684]
[1688265497421,0.63154652,30608.0,30607.0,0.382684]
[1688265499722,0.61331683,30608.0,30607.0,0.382684]
[1688265500229,0.63154652,30608.0,30607.0,0.382684]
[1688265501331,0.63154652,30608.0,30607.0,0.38247011]
[1688265503729,0.98484652,30608.0,30607.0,0.03157011]
[1688265513729,0.98484652,30608.0,30607.0,0.38487011]
[1688265514934,0.98484652,30608.0,30607.0,0.38465032]
[1688265521344,0.96661683,30608.0,30607.0,0.38465032]
[1688265521540,0.98484652,30608.0,30607.0,0.38465032]
[1688265523641,0.98484652,30608.0,30607.0,0.03135032]
[1688265527547,1.08622415,30608.0,30607.0,0.03135032]
[1688265528932,1.44702415,30608.0,30607.0,0.03135032]
[1688265529452,1.44702415,30608.0,30607.0,0.03123681]
[1688265533344,1.08622415,30608.0,30607.0,0.03123681]
[1688265533539,0.98484652,30608.0,30607.0,0.03123681]
[1688265533740,0.98484652,30608.0,30607.0,0.38213681]
[1688265534438,1.34564652,30608.0,30607.0,0.38213681]
[1688265535450,1.44702415,30608.0,30607.0,0.38213681]
[1688265536439,1.08622415,30608.0,30607.0,0.38213681]
[1688265536751,0.98484652,30608.0,30607.0,0.38213681]
[1688265537340,0.984668,30608.0,30607.0,0.38213681]
[1688265542458,0.96643831,30608.0,30607.0,0.38213681]
[1688265542959,0.92798486,30608.0,30607.0,0.38213681]
[1688265543159,0.57468486,30608.0,30607.0,0.40273647]
[1688265543459,0.46001293,30608.0,30607.0,0.39834237]
[1688265543655,0.4175397,30608.0,30607.0,0.39834237]
[1688265543840,0.42162557,30608.0,30607.0,0.39110366]
[1688265544747,0.42162557,30608.0,30607.0,0.74270366]
[1688265551863,0.42162557,30608.0,30607.0,0.38940366]
[1688265560170,0.42168557,30608.0,30607.0,0.38940366]
[1688265560595,0.59765995,30608.0,30607.0,0.371204]
[1688265560784,0.52503475,30608.0,30607.0,0.371204]
[1688265561782,0.5061853,30608.0,30607.0,0.371204]
[1688265562390,0.5061853,30608.0,30607.0,0.38940366]
[1688265575203,0.00426576,30608.0,30607.0,0.38940366]
[1688265575408,0.49417783,30608.0,30607.0,0.38940366]
[1688265575603,0.48991207,30608.0,30607.0,0.38940366]
[1688265575806,0.49315677,30608.0,30607.0,0.38940366]
[1688265576003,0.0032447,30608.0,30607.0,0.38940366]
[1688265576306,0.369901,30615.0,30607.0,0.38940366]
[1688265576307,0.00017721,30622.0,30616.0,0.05]
[1688265576603,0.0663196,30625.0,30622.0,0.019596]
[1688265576794,0.06092418,30629.0,30624.0,0.763085]
[1688265577101,0.06092418,30629.0,30628.0,0.372892]
[1688265577303,0.06092418,30629.0,30628.0,0.39109166]
[1688265577606,0.48927529,30629.0,30628.0,0.39109166]
[1688265582309,0.48927529,30629.0,30628.0,0.372892]
[1688265582909,0.51597545,30629.0,30628.0,0.372892]
[1688265586001,0.5348249,30629.0,30628.0,0.372892]
[1688265586598,0.55305459,30629.0,30628.0,0.372892]
[1688265586800,0.5348249,30629.0,30628.0,0.372892]
[1688265587906,0.92594559,30629.0,30627.0,0.40228]
[1688265588108,0.74944145,30628.0,30627.0,0.15282986]
[1688265588296,0.7761809,30628.0,30627.0,0.17242186]
[1688265588497,1.28599943,30628.0,30627.0,0.17242186]
[1688265593311,1.26640743,30628.0,30627.0,0.17242186]
[1688265593711,1.26950743,30628.0,30627.0,0.371792]
[1688265594613,1.28909943,30628.0,30627.0,0.371792]
[1688265596317,0.93579943,30628.0,30627.0,0.371792]
[1688265601016,0.91620743,30628.0,30627.0,0.37161614]
[1688265601223,0.51832829,30628.0,30627.0,0.37161614]
[1688265601710,0.51832829,30628.0,30627.0,0.3898158]
[1688265603324,0.51832829,30628.0,30627.0,0.7506158]
[1688265603720,0.51832829,30628.0,30627.0,0.3898158]
[1688265606110,0.52737862,30628.0,30627.0,0.3898158]
[1688265607020,0.52737862,30628.0,30627.0,0.6942158]
[1688265610223,0.52737862,30628.0,30627.0,1.0550158]
[1688265610522,0.02653018,30633.0,30631.0,0.0065]
[1688265610715,0.05,30640.0,30633.0,0.0065]
[1688265610916,0.05,30640.0,30639.0,0.3533]
[1688265611217,0.56498692,30640.0,30639.0,0.019585]
[1688265611422,0.56498692,30640.0,30639.0,0.3533]
[1688265611729,0.56498692,30640.0,30639.0,0.37149966]
[1688265612024,0.56498692,30640.0,30639.0,0.39108466]
[1688265612326,0.51498692,30640.0,30639.0,0.379385]
[1688265612523,0.51498692,30640.0,30639.0,0.372885]
[1688265612725,0.52998692,30640.0,30639.0,0.372885]
[1688265612925,0.52998692,30640.0,30639.0,0.39108466]
[1688265614417,0.50359972,30640.0,30639.0,0.39108466]
[1688265617926,0.54273656,30640.0,30639.0,0.39108466]
[1688265621130,0.54273656,30640.0,30639.0,0.39102466]
[1688265622130,0.52773656,30640.0,30639.0,0.39102466]
[1688265625441,0.54596625,30640.0,30639.0,0.372825]
[1688265625744,0.52773656,30640.0,30639.0,0.372825]
[1688265628445,0.54658601,30640.0,30639.0,0.372825]
[1688265628638,0.5648157,30640.0,30639.0,0.372825]
[1688265629552,0.54658601,30640.0,30639.0,0.372825]
[1688265630050,0.52773656,30640.0,30639.0,0.372825]
[1688265631641,0.54596625,30640.0,30639.0,0.372825]
[1688265631848,0.52773656,30640.0,30639.0,0.372825]
[1688265633349,0.52773656,30640.0,30639.0,0.39102466]
[1688265633647,0.54596625,30640.0,30639.0,0.372825]
[1688265634151,0.54596625,30640.0,30639.0,0.37263191]
[1688265634341,0.5648157,30640.0,30639.0,0.37263191]
[1688265634749,0.54658601,30640.0,30639.0,0.37263191]
[1688265634941,0.5648157,30640.0,30639.0,0.37263191]
[1688265636049,0.54658601,30640.0,30639.0,0.37263191]
[1688265636750,0.9256157,30640.0,30639.0,0.37263191]
[1688265638759,0.9256157,30640.0,30639.0,0.28146764]
[1688265638760,1.2864157,30640.0,30639.0,0.28146764]
[1688265640159,1.38774772,30640.0,30639.0,0.28146764]
[1688265640351,1.50543497,30640.0,30639.0,0.28146764]
[1688265642346,1.52501897,30640.0,30639.0,0.28146764]
[1688265642746,1.50543497,30640.0,30639.0,0.28146764]
[1688265652268,1.50543497,30640.0,30639.0,0.28131197]
[1688265656071,1.50543497,30640.0,30639.0,0.25318078]
[1688265662171,1.50543497,30640.0,30636.0,0.05924556]
[1688265662370,1.50543497,30640.0,30635.0,0.338887]
[1688265662371,0.019587,30636.0,30635.0,0.338887]
[1688265662568,0.019587,30636.0,30635.0,0.019587]
[1688265662569,0.733687,30636.0,30635.0,0.019587]
[1688265662772,1.2407818,30636.0,30635.0,0.019587]
[1688265662975,1.36096327,30636.0,30635.0,0.019587]
[1688265663474,1.47865052,30636.0,30635.0,0.019587]
[1688265663779,1.12535052,30636.0,30635.0,0.369687]
[1688265669179,1.14493752,30636.0,30635.0,0.369687]
[1688265671584,1.12535052,30636.0,30635.0,0.369687]
[1688265671966,1.14493752,30636.0,30635.0,0.369687]
[1688265673783,1.49523752,30636.0,30635.0,0.369687]
[1688265674873,1.47565052,30636.0,30635.0,0.369687]
[1688265676386,1.49523752,30636.0,30635.0,0.369687]
[1688265676577,1.49523752,30636.0,30635.0,0.36962586]
[1688265677483,1.52096188,30636.0,30635.0,0.36962586]
[1688265681884,1.52096188,30636.0,30635.0,0.36956586]
[1688265682583,1.49523752,30636.0,30635.0,0.36956586]
[1688265683691,1.08827138,30636.0,30635.0,0.36956586]
[1688265683986,0.97254507,30636.0,30635.0,0.36956586]
[1688265685078,1.34107476,30636.0,30635.0,0.36956586]
[1688265685278,1.44240678,30636.0,30635.0,0.36956586]
[1688265686289,1.57968103,30636.0,30635.0,0.36956586]
[1688265686482,1.58198103,30636.0,30635.0,0.37166586]
[1688265688086,1.56239403,30636.0,30635.0,0.37166586]
[1688265693596,1.20979403,30636.0,30635.0,0.36956586]
[1688265694695,1.20979403,30636.0,30635.0,0.36940503]
[1688265698690,1.20979403,30636.0,30635.0,0.369687]
[1688265703595,1.56309403,30636.0,30635.0,0.369687]
[1688265709397,1.56309403,30636.0,30635.0,0.36951421]
[1688265711297,1.64753865,30636.0,30635.0,0.36951421]
[1688265711901,1.66712565,30636.0,30635.0,0.36951421]
[1688265712295,1.66689133,30636.0,30635.0,0.36951421]
[1688265712899,1.64730433,30636.0,30635.0,0.36951421]
[1688265714198,1.58244671,30636.0,30635.0,0.36951421]
[1688265714499,1.58244671,30636.0,30635.0,0.33256279]
[1688265714895,1.58244671,30636.0,30635.0,0.31297579]
[1688265715097,1.58244671,30636.0,30633.0,0.058767]
[1688265715292,0.3526,30634.0,30633.0,0.058767]
[1688265715500,0.372188,30634.0,30632.0,0.73185363]
[1688265715802,0.730289,30633.0,30632.0,0.73185363]
[1688265716007,0.78440012,30633.0,30632.0,0.73185363]
[1688265716201,0.88573214,30633.0,30632.0,0.73185363]
[1688265716399,0.78440012,30633.0,30632.0,0.37855363]
[1688265719315,1.27105064,30633.0,30632.0,0.37855363]
[1688265719508,1.37238266,30633.0,30632.0,0.37855363]
[1688265720006,1.49006991,30633.0,30632.0,0.37855363]
[1688265724602,1.47048091,30633.0,30632.0,0.37855363]
[1688265726302,1.49686611,30633.0,30632.0,0.37855363]
[1688265727609,1.49686611,30633.0,30632.0,0.37837116]
[1688265732803,1.45978697,30633.0,30632.0,0.37837116]
[1688265733017,1.47863642,30633.0,30632.0,0.37837116]
[1688265733206,1.45225122,30633.0,30632.0,0.37837116]
[1688265733603,1.12058091,30633.0,30632.0,0.73057116]
[1688265734415,1.12058091,30633.0,30632.0,0.67180716]
[1688265735012,1.11735122,30633.0,30632.0,0.69139616]
[1688265736012,1.13558091,30633.0,30632.0,0.69139616]
[1688265737815,1.11735122,30633.0,30632.0,0.69139616]
[1688265738224,1.09850177,30633.0,30632.0,0.69139616]
[1688265740011,1.11735122,30633.0,30632.0,0.69139616]
[1688265740216,1.11735122,30633.0,30632.0,0.69117641]
[1688265743931,0.99966397,30633.0,30632.0,0.69117641]
[1688265744118,0.8794825,30633.0,30632.0,0.69117641]
[1688265744723,0.8644825,30633.0,30632.0,0.69117641]
[1688265744916,0.58812554,30633.0,30632.0,0.71587607]
[1688265747021,0.5036825,30633.0,30632.0,0.71587607]
[1688265747827,0.5036825,30633.0,30632.0,0.69767641]
[1688265748047,0.8644825,30633.0,30632.0,0.69117641]
[1688265748845,0.8644825,30633.0,30632.0,0.70937607]
[1688265750848,0.8644825,30633.0,30632.0,0.69117641]
[1688265754443,0.88333195,30633.0,30632.0,0.69117641]
[1688265755143,0.88333195,30633.0,30632.0,0.69100743]
[1688265756353,0.86432733,30633.0,30632.0,0.69100743]
[1688265757144,0.50352733,30633.0,30632.0,0.69100743]
[1688265757341,0.86432733,30633.0,30632.0,0.69100743]
[1688265757738,0.94877146,30633.0,30632.0,0.69100743]
[1688265759750,0.96762091,30633.0,30632.0,0.69100743]
[1688265761354,0.94877146,30633.0,30632.0,0.69100743]
[1688265762151,0.94877146,30633.0,30632.0,0.70920709]
[1688265765658,0.58797146,30633.0,30632.0,0.70920709]
[1688265765859,0.94877146,30633.0,30632.0,0.70920709]
[1688265769062,0.94877146,30633.0,30632.0,0.69100743]
[1688265769565,0.96700115,30633.0,30632.0,0.69100743]
[1688265769862,0.96762091,30633.0,30632.0,0.69100743]
[1688265770055,0.96762091,30633.0,30632.0,0.69091206]
[1688265770246,0.9858506,30633.0,30632.0,0.69091206]
[1688265770652,0.96762091,30633.0,30632.0,0.69091206]
[1688265771957,0.94877146,30633.0,30632.0,0.69091206]
[1688265774365,0.94877146,30633.0,30632.0,0.70911172]
[1688265775161,0.58797146,30633.0,30632.0,0.70911172]
[1688265784859,0.58797146,30633.0,30632.0,0.70889448]
[1688265790879,0.58797146,30633.0,30632.0,0.69069482]
[1688265791283,0.58797146,30633.0,30632.0,0.70889448]
[1688265809893,0.58797146,30633.0,30632.0,0.70879237]
[1688265810393,0.58797146,30633.0,30632.0,0.69059271]
[1688265810590,0.60682091,30633.0,30632.0,0.69059271]
[1688265811088,0.58797146,30633.0,30632.0,0.70879237]
[1688265813090,0.94877146,30633.0,30632.0,0.69059271]
[1688265813486,0.96762091,30633.0,30632.0,0.69059271]
[1688265815081,0.9858506,30633.0,30632.0,0.69059271]
[1688265815887,0.9858506,30633.0,30632.0,0.37227863]
[1688265816881,0.6250506,30633.0,30632.0,0.37227863]
[1688265817082,0.9858506,30633.0,30632.0,0.37227863]
[1688265819293,0.96762091,30633.0,30632.0,0.37227863]
[1688265819787,0.9858506,30633.0,30632.0,0.37227863]
[1688265821994,0.9858506,30633.0,30632.0,0.37212058]
[1688265822990,0.96762091,30633.0,30632.0,0.37212058]
[1688265823791,0.9858506,30633.0,30632.0,0.37212058]
[1688265825202,0.96762091,30633.0,30632.0,0.37212058]
[1688265827196,0.60682091,30633.0,30632.0,0.37212058]
[1688265827384,0.96762091,30633.0,30632.0,0.37212058]
[1688265827987,0.9858506,30633.0,30632.0,0.37212058]
[1688265828699,0.96762091,30633.0,30632.0,0.37212058]
[1688265830199,0.94877146,30633.0,30632.0,0.37212058]
[1688265832702,0.58797146,30633.0,30632.0,0.37212058]
[1688265832997,0.60682091,30633.0,30632.0,0.37212058]
[1688265835508,0.60682091,30633.0,30632.0,0.37188759]
[1688265838809,0.58797146,30633.0,30632.0,0.37188759]
[1688265842208,0.60682091,30633.0,30632.0,0.37188759]
[1688265842811,0.6250506,30633.0,30632.0,0.37188759]
[1688265843111,0.60682091,30633.0,30632.0,0.37188759]
[1688265843609,0.6250506,30633.0,30632.0,0.37188759]
[1688265844210,0.60682091,30633.0,30632.0,0.37188759]
[1688265844704,0.6250506,30633.0,30632.0,0.37188759]
[1688265844902,0.60682091,30633.0,30632.0,0.37188759]
[1688265845313,0.6250506,30633.0,30632.0,0.37188759]
[1688265845707,0.58797146,30633.0,30632.0,0.39008725]
[1688265847816,0.60620115,30633.0,30632.0,0.37188759]
[1688265848114,0.60682091,30633.0,30632.0,0.37188759]
[1688265849218,0.60682091,30633.0,30632.0,0.37168446]
[1688265850715,0.58797146,30633.0,30632.0,0.37168446]
[1688265852916,0.60682091,30633.0,30632.0,0.37168446]
[1688265860109,0.58797146,30633.0,30632.0,0.37168446]
[1688265861423,0.60682091,30633.0,30632.0,0.37168446]
[1688265861819,0.6250506,30633.0,30632.0,0.37168446]
[1688265862229,0.60682091,30633.0,30632.0,0.37168446]
[1688265862928,0.6250506,30633.0,30632.0,0.37168446]
[1688265863821,0.6250506,30633.0,30632.0,0.37153621]
[1688265864017,0.60682091,30633.0,30632.0,0.37153621]
[1688265866034,0.6446396,30633.0,30631.0,0.048974]
[1688265866217,0.6446396,30633.0,30624.0,0.3524]
[1688265866218,0.72254945,30632.0,30624.0,0.3524]
[1688265866418,0.3608,30626.0,30625.0,0.065313]
[1688265866629,0.75117914,30626.0,30625.0,0.065313]
[1688265868023,0.39787914,30626.0,30625.0,0.418613]
[1688265868529,0.41747214,30626.0,30625.0,0.418613]
[1688265870633,0.39787914,30626.0,30625.0,0.418613]
[1688265872245,0.41747214,30626.0,30625.0,0.418613]
[1688265873028,0.41735684,30626.0,30625.0,0.418613]
[1688265873627,0.76725684,30626.0,30625.0,0.418613]
[1688265882450,0.76725684,30626.0,30625.0,0.3533]
[1688265882856,0.76725684,30626.0,30625.0,0.372894]
[1688265883655,0.76755684,30626.0,30625.0,0.372894]
[1688265885763,0.76755684,30626.0,30625.0,0.37274887]
[1688265888153,0.40675684,30626.0,30625.0,0.37274887]
[1688265888469,0.76755684,30626.0,30625.0,0.37274887]
[1688265893570,0.41735684,30626.0,30625.0,0.37274887]
[1688265894963,0.05655684,30626.0,30625.0,0.37274887]
[1688265897072,0.03844245,30626.0,30625.0,0.37274887]
[1688265897464,0.019593,30626.0,30625.0,0.37274887]
[1688265898064,0.03782269,30626.0,30625.0,0.37274887]
[1688265898268,1.11663508,30627.0,30625.0,0.37274887]
[1688265898469,1.11663508,30627.0,30626.0,0.3533]
[1688265898669,1.13486477,30627.0,30626.0,0.372893]
[1688265898869,1.08588177,30627.0,30626.0,0.372893]
[1688265899771,1.10547477,30627.0,30626.0,0.372893]
[1688265901875,1.10547477,30627.0,30626.0,0.0194923]
[1688265902066,1.59653061,30627.0,30626.0,0.0194923]
[1688265902266,1.69787975,30627.0,30626.0,0.0194923]
[1688265902467,1.815567,30627.0,30626.0,0.0194923]
[1688265903173,1.815567,30627.0,30625.0,0.019594]
[1688265903373,0.47114214,30626.0,30625.0,0.019594]
[1688265903579,0.50822128,30626.0,30625.0,0.371794]
[1688265903768,0.62590853,30626.0,30625.0,0.371794]
[1688265903963,0.52455939,30626.0,30625.0,0.371794]
[1688265904170,0.52455939,30626.0,30625.0,0.3522]
[1688265904378,0.52455939,30626.0,30625.0,0.371794]
[1688265904867,0.40687214,30626.0,30625.0,0.371794]
[1688265905268,0.40687214,30626.0,30625.0,0.3522]
[1688265905680,0.89471041,30626.0,30625.0,0.3522]
[1688265906078,1.37319766,30626.0,30625.0,0.3533]
[1688265907883,1.47455296,30626.0,30625.0,0.3533]
[1688265908683,1.47455296,30626.0,30622.0,0.67628579]
[1688265908878,0.7111,30623.0,30622.0,0.67628579]
[1688265909079,0.730695,30623.0,30622.0,0.37338579]
[1688265909468,0.76777414,30623.0,30622.0,0.37338579]
[1688265909679,1.06817959,30623.0,30622.0,0.37338579]
[1688265913587,0.71787959,30623.0,30622.0,0.37228579]
[1688265917186,0.35717414,30623.0,30622.0,0.37228579]
[1688265917393,0.71797414,30623.0,30622.0,0.37228579]
[1688265918897,0.71797414,30623.0,30622.0,0.02008579]
[1688265919097,1.07057414,30623.0,30622.0,0.02008579]
[1688265919298,1.56059154,30623.0,30622.0,0.02008579]
[1688265919498,1.66194684,30623.0,30622.0,0.02008579]
[1688265920509,1.77963409,30623.0,30622.0,0.02008579]
[1688265920692,1.80528513,30623.0,30622.0,0.02008579]
[1688265922995,1.80528513,30623.0,30622.0,0.00048979]
[1688265923393,1.80528513,30623.0,30622.0,0.01993211]
[1688265929612,1.80529248,30623.0,30622.0,0.01993211]
[1688265930311,1.80529244,30623.0,30622.0,0.01993211]
[1688265930502,1.70392983,30623.0,30622.0,0.01993211]
[1688265930900,1.80529241,30623.0,30622.0,0.01993211]
[1688265931410,1.70392983,30623.0,30622.0,0.01993211]
[1688265931610,1.68433483,30623.0,30622.0,0.01993211]
[1688265931814,1.70392983,30623.0,30622.0,0.01993211]
[1688265932710,1.80529201,30623.0,30622.0,0.01993211]
[1688265934505,1.80529201,30623.0,30622.0,0.00033611]
[1688265934704,1.80529201,30623.0,30622.0,0.01993211]
[1688265936612,1.80529201,30623.0,30622.0,0.02976175]
[1688265937908,1.80529201,30623.0,30622.0,0.02962749]
[1688265947216,1.80529201,30623.0,30622.0,0.01003149]
[1688265948518,1.44449201,30623.0,30622.0,0.01003149]
[1688265948709,1.80529201,30623.0,30622.0,0.01003149]
[1688265949216,1.80529201,30623.0,30622.0,0.00020185]
[1688265950322,1.80529201,30623.0,30622.0,0.01979785]
[1688265950529,1.80529201,30623.0,30622.0,0.030037]
[1688265950735,1.80529201,30623.0,30622.0,0.02994978]
[1688265951727,1.80529201,30623.0,30622.0,0.01035378]
[1688265954334,1.80529201,30623.0,30622.0,0.02994978]
[1688265959338,1.50479201,30623.0,30622.0,0.02994978]
[1688265959650,0.73471787,30623.0,30622.0,0.38324978]
[1688265959849,0.63335569,30623.0,30622.0,0.38324978]
[1688265960144,0.63335569,30623.0,30622.0,0.40144944]
[1688265960935,0.51566844,30623.0,30622.0,0.40144944]
[1688265964542,0.51566844,30623.0,30622.0,0.4012472]
[1688265965638,0.53451789,30623.0,30622.0,0.38304754]
[1688265966635,0.51566844,30623.0,30622.0,0.38304754]
[1688265968335,0.53451789,30623.0,30622.0,0.38304754]
[1688265969045,0.55411289,30623.0,30622.0,0.38304754]
[1688265969843,0.65547507,30623.0,30622.0,0.38304754]
[1688265971846,1.01627507,30623.0,30622.0,0.38304754]
[1688265973742,1.36887507,30623.0,30622.0,0.38304754]
[1688265974045,1.48656232,30623.0,30622.0,0.38304754]
[1688265977554,1.46771287,30623.0,30622.0,0.38304754]
[1688265977852,0.73471787,30623.0,30622.0,0.38304754]
[1688265978041,0.63335569,30623.0,30622.0,0.38304754]
[1688265978243,0.63335569,30623.0,30622.0,0.4012472]
[1688265978852,0.51566844,30623.0,30622.0,0.4012472]
[1688265979556,0.51566844,30623.0,30622.0,0.40106106]
[1688265983454,0.88781789,30623.0,30622.0,0.3828614]
[1688265983651,0.88471789,30623.0,30622.0,0.3828614]
[1688265985559,0.88454634,30623.0,30622.0,0.3828614]
[1688265986352,0.86569689,30623.0,30622.0,0.3828614]
[1688265986656,0.88454634,30623.0,30622.0,0.3828614]
[1688265987762,0.86569689,30623.0,30622.0,0.3828614]
[1688265988267,0.96705907,30623.0,30622.0,0.3828614]
[1688265989066,0.86569689,30623.0,30622.0,0.3828614]
[1688265989258,0.96705907,30623.0,30622.0,0.3828614]
[1688265990159,0.98665407,30623.0,30622.0,0.3978614]
[1688265990556,1.02373321,30623.0,30622.0,0.3978614]
[1688265992165,1.38453321,30623.0,30622.0,0.3978614]
[1688265993664,1.38763321,30623.0,30622.0,0.3978614]
[1688265993866,1.36803821,30623.0,30622.0,0.3978614]
[1688265994161,1.33095907,30623.0,30622.0,0.41606106]
[1688265994358,1.30530803,30623.0,30622.0,0.41606106]
[1688265995161,0.95200803,30623.0,30622.0,0.41606106]
[1688265995352,0.48984585,30623.0,30622.0,0.41606106]
[1688265997763,0.48984585,30623.0,30622.0,0.41582112]
[1688265999755,0.48984585,30623.0,30622.0,0.40082112]
[1688266029576,0.48984585,30623.0,30622.0,0.38262146]
[1688266029882,0.85064585,30623.0,30622.0,0.38249734]
[1688266030282,0.95200803,30623.0,30622.0,0.38249734]
[1688266030475,0.97023772,30623.0,30622.0,0.38249734]
[1688266031183,0.95200803,30623.0,30622.0,0.38249734]
[1688266031975,0.95200803,30623.0,30622.0,0.400697]
[1688266032482,0.97023772,30623.0,30622.0,0.400697]
[1688266033482,0.60943772,30623.0,30622.0,0.400697]
[1688266033681,0.86887554,30623.0,30622.0,0.400697]
[1688266033986,0.97023772,30623.0,30622.0,0.400697]
[1688266034185,0.86887554,30623.0,30622.0,0.400697]
[1688266034484,0.97023772,30623.0,30622.0,0.400697]
[1688266036283,0.95200803,30623.0,30622.0,0.400697]
[1688266041084,0.97023772,30623.0,30622.0,0.400697]
[1688266041781,0.95200803,30623.0,30622.0,0.400697]
[1688266043689,0.97023772,30623.0,30622.0,0.400697]
[1688266043889,0.97023772,30623.0,30622.0,0.40058099]
[1688266044091,0.95200803,30623.0,30622.0,0.40058099]
[1688266045386,0.98908717,30623.0,30622.0,0.38238133]
[1688266046095,0.97085748,30623.0,30622.0,0.38238133]
[1688266046593,0.95200803,30623.0,30622.0,0.38238133]
[1688266047092,0.98908717,30623.0,30622.0,0.38238133]
[1688266047390,1.36198217,30623.0,30622.0,0.02908133]
[1688266049293,1.32490303,30623.0,30622.0,0.1016765]
[1688266049493,1.34313272,30623.0,30622.0,0.1016765]
[1688266050287,1.36198217,30623.0,30622.0,0.02908133]
[1688266051099,1.34313272,30623.0,30622.0,0.04728099]
[1688266051299,0.95200803,30623.0,30622.0,0.39738099]
[1688266051597,0.48984585,30623.0,30622.0,0.39738099]
[1688266056207,0.85064585,30623.0,30622.0,0.38238133]
[1688266056899,0.85064585,30623.0,30622.0,0.40058099]
[1688266057108,0.85064585,30623.0,30622.0,0.40038039]
[1688266057503,0.86887554,30623.0,30622.0,0.40038039]
[1688266057706,0.95200803,30623.0,30622.0,0.40038039]
[1688266058706,0.97023772,30623.0,30622.0,0.38218073]
[1688266059216,0.98908717,30623.0,30622.0,0.38218073]
[1688266060609,0.97023772,30623.0,30622.0,0.38218073]
[1688266061402,0.98908717,30623.0,30622.0,0.38218073]
[1688266062410,0.97023772,30623.0,30622.0,0.38218073]
[1688266063827,0.97023772,30623.0,30622.0,0.40038039]
[1688266063828,0.95200803,30623.0,30622.0,0.40038039]
[1688266064409,0.97023772,30623.0,30622.0,0.40038039]
[1688266064806,0.97023772,30623.0,30622.0,0.38218073]
[1688266065914,0.95200803,30623.0,30622.0,0.40038039]